[Event "FIDE WCCC Open-12 2024"]
[Site "Montesilvano"]
[Date "2024.11.18"]
[Round "2.1"]
[White "Bocquenet-Drouode, Hugo"]
[Black "Golis, Wiktor"]
[Result "0-1"]
[ECO "C25"]
[WhiteElo "2002"]
[BlackElo "2343"]
[PlyCount "104"]
[EventDate "2024.11.18"]
[EventType "swiss"]
[EventCountry "ITA"]
[TimeControl "5400+30"]

1. e4 {[%emt 0:00:03]} e5 {[%emt 0:02:14]} 2. Nc3 {[%emt 0:00:07]} Nc6 {[%emt 0:02:36]} 3. g3 {[%emt 0:00:06]} Bc5 {[%emt 0:08:28]} 4. Bg2 {[%emt 0:00:13]} Nge7 {[%emt 0:01:37]} 5. d3 {[%emt 0:04:46]} O-O {[%emt 0:06:15]} 6. Na4 {[%emt 0:10:20]} Bb4+ {[%emt 0:05:57]} 7. c3 {[%emt 0:00:17]} Bd6 {[%emt 0:01:06]} 8. c4 {[%emt 0:00:59]} Bb4+ {[%emt 0:00:57]} 9. Bd2 {[%emt 0:00:17]} Bxd2+ {[%emt 0:02:43]} 10. Qxd2 {[%emt 0:00:10]} f5 {[%emt 0:01:42]} 11. Ne2 {[%emt 0:03:40]} d6 {[%emt 0:04:01]} 12. Nac3 {[%emt 0:02:22]} Be6 {[%emt 0:07:16]} 13. Nd5 {[%emt 0:03:16]} Qd7 {[%emt 0:00:24]} 14. f4 {[%emt 0:12:50]} fxe4 {[%emt 0:01:46]} 15. dxe4 {[%emt 0:03:07]} Bg4 {[%emt 0:00:40]} 16. Nec3 {[%emt 0:11:17]} Nxd5 {[%emt 0:27:28]} 17. cxd5 {[%emt 0:02:07]} Nd4 {[%emt 0:01:57]} 18. h3 {[%emt 0:02:11]} Bf3 {[%emt 0:02:57]} 19. O-O {[%emt 0:00:55]} Bxg2 {[%emt 0:00:25]} 20. Kxg2 {[%emt 0:00:20]} c5 {[%emt 0:00:43]} 21. Ne2 {[%emt 0:08:45]} Nxe2 {[%emt 0:06:38]} 22. Qxe2 {[%emt 0:00:23]} exf4 {[%emt 0:00:04]} 23. gxf4 {[%emt 0:00:20]} Rae8 {[%emt 0:00:07]} 24. Rae1 {[%emt 0:00:42]} Re7 {[%emt 0:00:21]} 25. Rf3 {[%emt 0:02:44]} Rfe8 {[%emt 0:01:33]} 26. Re3 {[%emt 0:00:13]} a6 {[%emt 0:01:18]} 27. Qd3 {[%emt 0:03:20]} Qa4 {[%emt 0:05:31]} 28. a3 {[%emt 0:00:42]} Qd4 {[%emt 0:01:45]} 29. Qxd4 {[%emt 0:02:42]} cxd4 {[%emt 0:00:04]} 30. Rd3 {[%emt 0:00:04]} Rxe4 {[%emt 0:00:07]} 31. Rxe4 {[%emt 0:00:05]} Rxe4 {[%emt 0:00:05]} 32. Kf3 {[%emt 0:00:04]} Re3+ {[%emt 0:03:22]} 33. Rxe3 {[%emt 0:00:05]} dxe3 {[%emt 0:00:08]} 34. Kxe3 {[%emt 0:00:09]} g6 {[%emt 0:01:07]} 35. Kf3 {[%emt 0:02:39]} Kf7 {[%emt 0:00:47]} 36. Kg4 {[%emt 0:00:11]} Kf6 {[%emt 0:00:04]} 37. h4 {[%emt 0:01:07]} h6 {[%emt 0:00:49]} 38. b4 {[%emt 0:02:14]} b5 {[%emt 0:00:28]} 39. Kg3 {[%emt 0:00:11]} Kf5 {[%emt 0:00:09]} 40. Kf3 {[%emt 0:00:04]} h5 {[%emt 0:00:12]} 41. Ke3 {[%emt 0:04:59]} Kg4 {[%emt 0:00:07]} 42. Ke4 {[%emt 0:00:05]} Kxh4 {[%emt 0:00:07]} 43. f5 {[%emt 0:00:16]} Kg5 {[%emt 0:00:04]} 44. fxg6 {[%emt 0:00:14]} Kxg6 {[%emt 0:00:05]} 45. Kf4 {[%emt 0:00:05]} Kf6 {[%emt 0:00:06]} 46. Ke4 {[%emt 0:00:08]} h4 {[%emt 0:00:18]} 47. Kf4 {[%emt 0:00:03]} h3 {[%emt 0:00:05]} 48. Kg3 {[%emt 0:00:03]} Ke5 {[%emt 0:00:03]} 49. Kxh3 {[%emt 0:00:03]} Kxd5 {[%emt 0:00:04]} 50. Kg3 {[%emt 0:00:05]} Kc4 {[%emt 0:00:03]} 51. Kf3 {[%emt 0:00:03]} Kb3 {[%emt 0:00:05]} 52. Ke4 {[%emt 0:00:04]} Kxa3 {[%emt 0:00:05]} 0-1

[Event "FIDE WCCC Open-12 2024"]
[Site "Montesilvano"]
[Date "2024.11.18"]
[Round "2.2"]
[White "Lacan Rus, David"]
[Black "Nguyen, Anh Khoi"]
[Result "1-0"]
[ECO "D35"]
[WhiteElo "2274"]
[BlackElo "2520"]
[PlyCount "69"]
[EventDate "2024.11.18"]
[EventType "swiss"]
[EventCountry "ITA"]
[TimeControl "5400+30"]

1. d4 {[%emt 0:00:01]} d5 {[%emt 0:00:05]} 2. c4 {[%emt 0:00:15]} e6 {[%emt 0:00:04]} 3. Nc3 {[%emt 0:00:49]} Nf6 {[%emt 0:00:10]} 4. cxd5 {[%emt 0:00:14]} exd5 {[%emt 0:00:05]} 5. Bg5 {[%emt 0:00:07]} c6 {[%emt 0:00:05]} 6. e3 {[%emt 0:00:06]} Bd6 {[%emt 0:00:08]} 7. Bd3 {[%emt 0:00:16]} O-O {[%emt 0:00:13]} 8. Qc2 {[%emt 0:00:15]} h6 {[%emt 0:00:07]} 9. Bh4 {[%emt 0:00:18]} Re8 {[%emt 0:00:54]} 10. Nge2 {[%emt 0:00:41]} a5 {[%emt 0:01:31]} 11. Bg3 {[%emt 0:06:57]} Na6 {[%emt 0:05:34]} 12. a3 {[%emt 0:00:48]} Nc7 {[%emt 0:01:21]} 13. O-O {[%emt 0:01:09]} Bxg3 {[%emt 0:18:33]} 14. Nxg3 {[%emt 0:00:14]} Qd6 {[%emt 0:00:07]} 15. Na4 {[%emt 0:02:20]} Ne6 {[%emt 0:12:49]} 16. Rfc1 {[%emt 0:06:25]} Ng5 {[%emt 0:06:09]} 17. Nc5 {[%emt 0:04:23]} Qe7 {[%emt 0:00:52]} 18. b4 {[%emt 0:13:51]} h5 {[%emt 0:05:46]} 19. Nf1 {[%emt 0:06:09]} h4 {[%emt 0:16:09]} 20. h3 {[%emt 0:00:27]} axb4 {[%emt 0:09:28]} 21. axb4 {[%emt 0:00:06]} Rxa1 {[%emt 0:00:06]} 22. Rxa1 {[%emt 0:00:04]} Nfe4 {[%emt 0:00:08]} 23. Ra7 {[%emt 0:07:37]} Bxh3 {[%emt 0:08:09]} 24. f4 {[%emt 0:03:13]} Bf5 {[%emt 0:09:50]} 25. Rxb7 {[%emt 0:02:23]} Qf6 {[%emt 0:00:21]} 26. fxg5 {[%emt 0:01:05]} Qxg5 {[%emt 0:00:09]} 27. Nxe4 {[%emt 0:03:26]} dxe4 {[%emt 0:00:19]} 28. Bc4 {[%emt 0:00:43]} Bg6 {[%emt 0:00:38]} 29. Qf2 {[%emt 0:00:57]} Re7 {[%emt 0:00:46]} 30. Rb8+ {[%emt 0:00:49]} Kh7 {[%emt 0:00:02]} 31. Rc8 {[%emt 0:02:56]} Rb7 {[%emt 0:02:15]} 32. b5 {[%emt 0:07:43]} cxb5 {[%emt 0:00:17]} 33. Rc5 {[%emt 0:00:17]} Qe7 {[%emt 0:02:24]} 34. Bxb5 {[%emt 0:00:43]} Ra7 {[%emt 0:00:41]} 35. Qf4 {[%emt 0:30:13]} 1-0

[Event "FIDE WCCC Open-12 2024"]
[Site "Montesilvano"]
[Date "2024.11.18"]
[Round "2.3"]
[White "Negrean, Andrei"]
[Black "Radnaev, Leo"]
[Result "1-0"]
[ECO "E97"]
[WhiteElo "2255"]
[BlackElo "1990"]
[PlyCount "120"]
[EventDate "2024.11.18"]
[EventType "swiss"]
[EventCountry "ITA"]
[TimeControl "5400+30"]

1. Nf3 {[%emt 0:00:07]} Nf6 {[%emt 0:00:05]} 2. c4 {[%emt 0:00:09]} g6 {[%emt 0:00:12]} 3. Nc3 {[%emt 0:00:10]} Bg7 {[%emt 0:00:04]} 4. e4 {[%emt 0:00:12]} d6 {[%emt 0:00:19]} 5. d4 {[%emt 0:00:29]} O-O {[%emt 0:00:25]} 6. Be2 {[%emt 0:00:10]} e5 {[%emt 0:00:22]} 7. O-O {[%emt 0:00:12]} Nc6 {[%emt 0:00:11]} 8. Be3 {[%emt 0:00:35]} Ng4 {[%emt 0:22:43]} 9. Bg5 {[%emt 0:00:53]} f6 {[%emt 0:00:54]} 10. Bc1 {[%emt 0:01:09]} Nh6 {[%emt 0:06:45]} 11. c5 {[%emt 0:19:45]} Ne7 {[%emt 0:12:54]} 12. dxe5 {[%emt 0:06:53]} dxe5 {[%emt 0:00:19]} 13. Bc4+ {[%emt 0:03:14]} Kh8 {[%emt 0:02:08]} 14. Qxd8 {[%emt 0:00:48]} Rxd8 {[%emt 0:00:04]} 15. Nb5 {[%emt 0:00:16]} Bd7 {[%emt 0:12:37]} 16. Nxc7 {[%emt 0:01:14]} Rac8 {[%emt 0:01:41]} 17. Ne6 {[%emt 0:02:54]} Bxe6 {[%emt 0:00:41]} 18. Bxe6 {[%emt 0:00:04]} Rxc5 {[%emt 0:00:22]} 19. Bd2 {[%emt 0:04:28]} Rc6 {[%emt 0:12:10]} 20. Bb3 {[%emt 0:00:37]} Rcc8 {[%emt 0:00:41]} 21. Rac1 {[%emt 0:10:30]} Nhg8 {[%emt 0:02:11]} 22. Be3 {[%emt 0:08:48]} Nc6 {[%emt 0:01:21]} 23. Be6 {[%emt 0:00:38]} Ra8 {[%emt 0:00:35]} 24. Rfd1 {[%emt 0:11:13]} Nge7 {[%emt 0:02:44]} 25. Kf1 {[%emt 0:05:09]} Rxd1+ {[%emt 0:04:50]} 26. Rxd1 {[%emt 0:00:04]} Rd8 {[%emt 0:00:05]} 27. Rc1 {[%emt 0:05:44]} Rd6 {[%emt 0:00:53]} 28. Bb3 {[%emt 0:00:56]} Rd8 {[%emt 0:11:46]} 29. Bc5 {[%emt 0:05:45]} Nc8 {[%emt 0:04:11]} 30. Bd5 {[%emt 0:00:37]} Nb6 {[%emt 0:00:42]} 31. Bxc6 {[%emt 0:00:30]} bxc6 {[%emt 0:00:33]} 32. Bxb6 {[%emt 0:00:08]} axb6 {[%emt 0:00:11]} 33. Rxc6 {[%emt 0:00:01]} Rb8 {[%emt 0:00:30]} 34. Ke2 {[%emt 0:01:37]} Kg8 {[%emt 0:00:47]} 35. Nd2 {[%emt 0:00:22]} b5 {[%emt 0:00:19]} 36. Nb3 {[%emt 0:03:27]} b4 {[%emt 0:00:42]} 37. Nc5 {[%emt 0:00:35]} Bf8 {[%emt 0:00:30]} 38. Na6 {[%emt 0:02:04]} Rb5 {[%emt 0:00:11]} 39. Nc7 {[%emt 0:02:12]} Ra5 {[%emt 0:00:21]} 40. Ra6 {[%emt 0:00:28]} Rc5 {[%emt 0:00:44]} 41. Ne6 {[%emt 0:00:05]} Rc8 {[%emt 0:00:09]} 42. Ra7 {[%emt 0:02:48]} Bd6 {[%emt 0:00:57]} 43. Rg7+ {[%emt 0:00:10]} Kh8 {[%emt 0:00:06]} 44. Rd7 {[%emt 0:00:04]} Bb8 {[%emt 0:01:02]} 45. Rd8+ {[%emt 0:00:10]} Rxd8 {[%emt 0:00:04]} 46. Nxd8 {[%emt 0:00:01]} Ba7 {[%emt 0:00:57]} 47. Nc6 {[%emt 0:05:35]} Bc5 48. f3 {[%emt 0:00:00]} b3 {[%emt 0:00:48]} 49. axb3 {[%emt 0:00:00]} Kg7 {[%emt 0:00:15]} 50. Kd3 {[%emt 0:00:00]} Bg1 {[%emt 0:00:08]} 51. h3 {[%emt 0:00:00]} Kh6 {[%emt 0:00:17]} 52. b4 {[%emt 0:00:00]} Kg5 {[%emt 0:00:06]} 53. Ne7 {[%emt 0:00:00]} Kf4 {[%emt 0:00:12]} 54. Ke2 {[%emt 0:00:00]} f5 {[%emt 0:00:18]} 55. Nd5+ {[%emt 0:00:00]} Kg3 {[%emt 0:00:16]} 56. Kf1 {[%emt 0:00:00]} Bd4 {[%emt 0:00:10]} 57. b3 {[%emt 0:00:00]} fxe4 {[%emt 0:00:24]} 58. fxe4 {[%emt 0:00:00]} Kh2 {[%emt 0:00:20]} 59. b5 {[%emt 0:00:00]} g5 {[%emt 0:00:16]} 60. b6 {[%emt 0:00:00]} h5 {[%emt 0:00:03]} 1-0

[Event "FIDE WCCC Open-12 2024"]
[Site "Montesilvano"]
[Date "2024.11.18"]
[Round "2.4"]
[White "Antipov, Fedor"]
[Black "Aansh Nandan Nerurkar"]
[Result "1-0"]
[ECO "B76"]
[WhiteElo "1991"]
[BlackElo "2247"]
[PlyCount "125"]
[EventDate "2024.11.18"]
[EventType "swiss"]
[EventCountry "ITA"]
[TimeControl "5400+30"]

1. e4 {[%emt 0:00:03]} c5 {[%emt 0:00:04]} 2. Nf3 {[%emt 0:00:04]} d6 {[%emt 0:00:05]} 3. d4 {[%emt 0:00:03]} cxd4 {[%emt 0:00:05]} 4. Nxd4 {[%emt 0:00:03]} Nf6 {[%emt 0:00:09]} 5. Nc3 {[%emt 0:00:07]} g6 {[%emt 0:00:05]} 6. Be3 {[%emt 0:00:06]} Bg7 {[%emt 0:00:05]} 7. f3 {[%emt 0:00:05]} O-O {[%emt 0:00:05]} 8. Qd2 {[%emt 0:00:02]} Nc6 {[%emt 0:00:05]} 9. O-O-O {[%emt 0:00:17]} Nxd4 {[%emt 0:00:06]} 10. Bxd4 {[%emt 0:00:35]} Be6 {[%emt 0:00:06]} 11. Kb1 {[%emt 0:00:14]} Qc7 {[%emt 0:00:06]} 12. h4 {[%emt 0:01:01]} Rfc8 {[%emt 0:00:06]} 13. h5 {[%emt 0:01:01]} Qa5 {[%emt 0:00:06]} 14. hxg6 {[%emt 0:00:36]} fxg6 {[%emt 0:00:10]} 15. a3 {[%emt 0:01:22]} Bf7 {[%emt 0:00:11]} 16. g4 {[%emt 0:01:38]} Rab8 {[%emt 0:00:32]} 17. g5 {[%emt 0:02:27]} Nh5 {[%emt 0:00:19]} 18. Bxg7 {[%emt 0:01:06]} Kxg7 {[%emt 0:00:12]} 19. f4 {[%emt 0:06:00]} Rxc3 {[%emt 0:01:51]} 20. Qd4+ {[%emt 0:07:06]} Kg8 {[%emt 0:01:35]} 21. bxc3 {[%emt 0:10:30]} Rc8 {[%emt 0:12:03]} 22. Qb4 {[%emt 0:10:05]} Qd8 {[%emt 0:06:29]} 23. Rh4 {[%emt 0:31:57]} Rc6 {[%emt 0:01:58]} 24. Ka1 {[%emt 0:08:03]} Qc7 {[%emt 0:01:26]} 25. f5 {[%emt 0:11:43]} Rxc3 {[%emt 0:00:53]} 26. Bd3 {[%emt 0:01:45]} a5 {[%emt 0:01:14]} 27. Qd4 {[%emt 0:01:25]} Rxa3+ {[%emt 0:03:28]} 28. Kb2 {[%emt 0:02:27]} Ra2+ {[%emt 0:00:26]} 29. Kc1 {[%emt 0:00:53]} a4 {[%emt 0:01:14]} 30. Kd2 {[%emt 0:02:46]} Qc6 {[%emt 0:07:43]} 31. fxg6 {[%emt 0:00:00]} hxg6 {[%emt 0:00:05]} 32. Rf1 {[%emt 0:00:17]} Ra3 {[%emt 0:02:49]} 33. Qb4 {[%emt 0:00:27]} Qc5 {[%emt 0:01:03]} 34. Qxc5 {[%emt 0:00:36]} dxc5 {[%emt 0:00:04]} 35. e5 {[%emt 0:00:34]} Kg7 {[%emt 0:02:56]} 36. e6 {[%emt 0:00:31]} Bg8 {[%emt 0:02:08]} 37. Rb1 {[%emt 0:00:29]} Bxe6 {[%emt 0:01:49]} 38. Re4 {[%emt 0:00:19]} Kf7 {[%emt 0:00:21]} 39. Rxb7 {[%emt 0:00:44]} Ra1 {[%emt 0:02:43]} 40. Bc4 {[%emt 0:00:20]} Ng7 {[%emt 0:00:58]} 41. Rxe6 {[%emt 0:00:23]} Nxe6 {[%emt 0:00:09]} 42. Rb6 {[%emt 0:00:05]} Rg1 {[%emt 0:00:24]} 43. Rxe6 {[%emt 0:01:00]} Rxg5 {[%emt 0:00:13]} 44. Ra6+ {[%emt 0:00:40]} Kg7 {[%emt 0:00:07]} 45. Rxa4 {[%emt 0:00:10]} Re5 {[%emt 0:00:03]} 46. Ra6 {[%emt 0:00:23]} Re4 {[%emt 0:01:02]} 47. Bd3 {[%emt 0:00:20]} Rg4 {[%emt 0:00:06]} 48. Rc6 {[%emt 0:00:23]} Rg5 {[%emt 0:00:53]} 49. Kc3 {[%emt 0:00:09]} Kf7 {[%emt 0:00:11]} 50. Kc4 {[%emt 0:00:17]} e5 {[%emt 0:00:31]} 51. Rxc5 {[%emt 0:00:10]} Ke7 {[%emt 0:00:19]} 52. Rc6 {[%emt 0:00:11]} e4 {[%emt 0:00:20]} 53. Bxe4 {[%emt 0:00:07]} Rg4 {[%emt 0:00:04]} 54. Kd5 {[%emt 0:00:14]} g5 {[%emt 0:00:05]} 55. Ke5 {[%emt 0:00:55]} Rg1 {[%emt 0:00:07]} 56. Rc7+ {[%emt 0:00:06]} Kd8 {[%emt 0:00:05]} 57. Rg7 {[%emt 0:00:05]} g4 {[%emt 0:00:07]} 58. Kd6 {[%emt 0:00:28]} Ke8 {[%emt 0:00:13]} 59. Bd5 {[%emt 0:00:07]} Rf1 {[%emt 0:00:04]} 60. Rxg4 {[%emt 0:00:22]} Rf6+ {[%emt 0:02:19]} 61. Be6 {[%emt 0:00:12]} Rf8 {[%emt 0:00:08]} 62. Ra4 {[%emt 0:00:11]} Rf6 {[%emt 0:00:20]} 63. Ra8# {[%emt 0:00:04]} 1-0

[Event "FIDE WCCC Open-12 2024"]
[Site "Montesilvano"]
[Date "2024.11.18"]
[Round "2.5"]
[White "Kuandykuly, Danis"]
[Black "Platonovs, Nikolajs"]
[Result "0-1"]
[ECO "B94"]
[WhiteElo "2199"]
[BlackElo "1969"]
[PlyCount "76"]
[EventDate "2024.11.18"]
[EventType "swiss"]
[EventCountry "ITA"]
[TimeControl "5400+30"]

1. e4 {[%emt 0:00:18]} c5 {[%emt 0:00:06]} 2. Nf3 {[%emt 0:00:10]} d6 {[%emt 0:00:04]} 3. d4 {[%emt 0:00:11]} cxd4 {[%emt 0:00:03]} 4. Nxd4 {[%emt 0:00:05]} Nf6 {[%emt 0:00:05]} 5. Nc3 {[%emt 0:00:06]} a6 {[%emt 0:00:04]} 6. Bg5 {[%emt 0:00:27]} Nbd7 {[%emt 0:00:07]} 7. Bc4 {[%emt 0:00:19]} Qb6 {[%emt 0:00:14]} 8. Bb3 {[%emt 0:01:35]} e6 {[%emt 0:00:17]} 9. Qd2 {[%emt 0:01:29]} Be7 {[%emt 0:00:09]} 10. O-O-O {[%emt 0:00:23]} Nc5 {[%emt 0:00:17]} 11. f3 {[%emt 0:00:49]} Qc7 {[%emt 0:00:13]} 12. Kb1 {[%emt 0:06:18]} b5 {[%emt 0:03:50]} 13. a3 {[%emt 0:00:43]} Bd7 {[%emt 0:00:36]} 14. Rhe1 {[%emt 0:05:17]} O-O {[%emt 0:09:59]} 15. g4 {[%emt 0:03:46]} Rfb8 {[%emt 0:10:25]} 16. Qe2 {[%emt 0:12:31]} b4 {[%emt 0:07:42]} 17. axb4 {[%emt 0:02:12]} Rxb4 {[%emt 0:00:42]} 18. f4 {[%emt 0:14:59]} Nxb3 {[%emt 0:19:37]} 19. Nxb3 {[%emt 0:16:12]} Bc6 {[%emt 0:08:47]} 20. Qd3 {[%emt 0:03:52]} Rd8 {[%emt 0:09:51]} 21. Nd4 {[%emt 0:11:03]} Bb7 {[%emt 0:04:07]} 22. f5 {[%emt 0:03:32]} e5 {[%emt 0:07:02]} 23. Nf3 {[%emt 0:02:50]} h6 {[%emt 0:01:46]} 24. Bxf6 {[%emt 0:07:10]} Bxf6 {[%emt 0:00:06]} 25. Nd5 {[%emt 0:00:37]} Bxd5 {[%emt 0:00:17]} 26. Qxd5 {[%emt 0:00:05]} Qc3 {[%emt 0:01:54]} 27. b3 {[%emt 0:02:07]} Qxf3 {[%emt 0:00:24]} 28. Rd3 {[%emt 0:01:14]} Qf2 {[%emt 0:00:42]} 29. Red1 {[%emt 0:00:28]} Qa7 {[%emt 0:00:48]} 30. Rc3 {[%emt 0:01:14]} Rd4 {[%emt 0:02:39]} 31. Rxd4 {[%emt 0:00:09]} Qxd4 {[%emt 0:00:48]} 32. Qxd4 {[%emt 0:00:28]} exd4 {[%emt 0:00:04]} 33. Rc6 {[%emt 0:00:03]} Be5 {[%emt 0:00:28]} 34. Rxa6 {[%emt 0:00:12]} Bxh2 {[%emt 0:00:11]} 35. Rc6 {[%emt 0:00:19]} Re8 {[%emt 0:00:23]} 36. b4 {[%emt 0:00:08]} Rxe4 {[%emt 0:00:13]} 37. b5 {[%emt 0:00:05]} d3 {[%emt 0:00:07]} 38. c3 {[%emt 0:00:19]} Re1+ {[%emt 0:00:10]} 0-1

[Event "FIDE WCCC Open-12 2024"]
[Site "Montesilvano"]
[Date "2024.11.18"]
[Round "2.6"]
[White "Gao, Arthur"]
[Black "Liu, Patrick"]
[Result "1/2-1/2"]
[ECO "B15"]
[WhiteElo "1979"]
[BlackElo "2192"]
[PlyCount "202"]
[EventDate "2024.11.18"]
[EventType "swiss"]
[EventCountry "ITA"]
[TimeControl "5400+30"]

1. e4 {[%emt 0:00:06]} c6 {[%emt 0:00:02]} 2. d4 {[%emt 0:00:20]} d5 {[%emt 0:00:02]} 3. Nc3 {[%emt 0:00:53]} dxe4 {[%emt 0:00:08]} 4. Nxe4 {[%emt 0:00:04]} Nf6 {[%emt 0:00:02]} 5. Nxf6+ {[%emt 0:00:17]} exf6 {[%emt 0:00:05]} 6. c3 {[%emt 0:00:01]} Bd6 {[%emt 0:00:02]} 7. Bd3 {[%emt 0:00:19]} O-O {[%emt 0:00:02]} 8. Qc2 {[%emt 0:00:07]} Re8+ {[%emt 0:00:05]} 9. Ne2 {[%emt 0:00:05]} h5 {[%emt 0:00:04]} 10. O-O {[%emt 0:00:04]} h4 {[%emt 0:00:04]} 11. h3 {[%emt 0:00:01]} Nd7 {[%emt 0:00:11]} 12. Be3 {[%emt 0:06:33]} Nf8 {[%emt 0:00:11]} 13. c4 {[%emt 0:03:11]} Be6 {[%emt 0:00:49]} 14. Rfd1 {[%emt 0:08:11]} Rc8 {[%emt 0:09:48]} 15. c5 {[%emt 0:12:04]} Bb8 {[%emt 0:00:39]} 16. Bf4 {[%emt 0:13:03]} g6 {[%emt 0:03:48]} 17. Be4 {[%emt 0:10:35]} f5 {[%emt 0:19:41]} 18. Bf3 {[%emt 0:02:48]} Nh7 {[%emt 0:08:43]} 19. Qd2 {[%emt 0:04:29]} Bxf4 {[%emt 0:08:38]} 20. Nxf4 {[%emt 0:05:12]} Ng5 {[%emt 0:01:40]} 21. Qc3 {[%emt 0:04:35]} Qf6 {[%emt 0:09:22]} 22. Nxe6 {[%emt 0:11:44]} Rxe6 {[%emt 0:05:57]} 23. Rd3 {[%emt 0:06:08]} Re7 {[%emt 0:03:52]} 24. Rad1 {[%emt 0:03:22]} Rd7 {[%emt 0:01:24]} 25. d5 {[%emt 0:07:31]} Qxc3 {[%emt 0:00:17]} 26. bxc3 {[%emt 0:00:06]} Nxf3+ {[%emt 0:00:15]} 27. gxf3 {[%emt 0:00:03]} cxd5 {[%emt 0:00:19]} 28. Rxd5 {[%emt 0:00:03]} Rdc7 {[%emt 0:00:22]} 29. Rb1 {[%emt 0:01:06]} a6 {[%emt 0:01:21]} 30. Rd4 {[%emt 0:01:38]} Rxc5 {[%emt 0:00:48]} 31. Rxb7 {[%emt 0:00:09]} Rxc3 {[%emt 0:00:17]} 32. Rdd7 {[%emt 0:00:41]} Rf8 {[%emt 0:00:13]} 33. Kg2 {[%emt 0:00:39]} Ra3 {[%emt 0:00:15]} 34. Rb2 {[%emt 0:00:37]} Kg7 {[%emt 0:00:24]} 35. Ra7 {[%emt 0:00:25]} Kh6 {[%emt 0:02:31]} 36. Rb6 {[%emt 0:00:16]} Rxa2 {[%emt 0:00:31]} 37. Rbxa6 {[%emt 0:00:34]} Rd2 {[%emt 0:00:20]} 38. Rf6 {[%emt 0:00:28]} Kg7 {[%emt 0:01:31]} 39. Rfa6 {[%emt 0:00:46]} Re8 {[%emt 0:01:06]} 40. Ra2 {[%emt 0:00:17]} Rd1 {[%emt 0:00:24]} 41. Ra1 {[%emt 0:00:08]} Rdd8 {[%emt 0:00:10]} 42. Rb1 {[%emt 0:01:02]} Rd2 {[%emt 0:00:13]} 43. Ra4 {[%emt 0:00:34]} Ree2 {[%emt 0:00:56]} 44. Rf1 {[%emt 0:00:04]} g5 {[%emt 0:00:12]} 45. Raa1 {[%emt 0:00:38]} Rb2 {[%emt 0:00:23]} 46. Rae1 {[%emt 0:00:12]} Rec2 {[%emt 0:01:29]} 47. Rc1 {[%emt 0:00:04]} Kg6 {[%emt 0:00:53]} 48. Rxc2 {[%emt 0:00:07]} Rxc2 {[%emt 0:00:01]} 49. Ra1 {[%emt 0:00:07]} Rc4 {[%emt 0:00:12]} 50. Ra8 {[%emt 0:01:18]} Rd4 {[%emt 0:04:41]} 51. Ra6+ {[%emt 0:00:54]} f6 {[%emt 0:00:13]} 52. Ra8 {[%emt 0:00:43]} g4 {[%emt 0:01:34]} 53. fxg4 {[%emt 0:00:37]} fxg4 {[%emt 0:00:12]} 54. hxg4 {[%emt 0:00:04]} Rxg4+ {[%emt 0:00:15]} 55. Kf3 {[%emt 0:00:36]} Rb4 {[%emt 0:00:41]} 56. Rh8 {[%emt 0:00:54]} Kg5 {[%emt 0:00:40]} 57. Rg8+ {[%emt 0:00:51]} Kf5 {[%emt 0:00:06]} 58. Rh8 {[%emt 0:00:04]} Rf4+ {[%emt 0:01:27]} 59. Kg2 {[%emt 0:00:06]} Ke6 {[%emt 0:03:02]} 60. Rh7 {[%emt 0:00:52]} f5 {[%emt 0:00:33]} 61. Rh6+ {[%emt 0:00:27]} Ke5 {[%emt 0:00:11]} 62. f3 {[%emt 0:01:02]} Ra4 {[%emt 0:00:49]} 63. Kf2 {[%emt 0:00:33]} Ra2+ {[%emt 0:00:19]} 64. Ke3 {[%emt 0:00:08]} Rh2 {[%emt 0:05:45]} 65. f4+ {[%emt 0:00:44]} Kd5 {[%emt 0:00:05]} 66. Kf3 {[%emt 0:00:21]} Rh3+ {[%emt 0:02:29]} 67. Kg2 {[%emt 0:00:12]} Rg3+ {[%emt 0:00:08]} 68. Kf2 {[%emt 0:00:03]} Ke4 {[%emt 0:03:14]} 69. Rxh4 {[%emt 0:00:04]} Rf3+ {[%emt 0:00:09]} 70. Ke2 {[%emt 0:01:11]} Ra3 {[%emt 0:00:25]} 71. Kf2 {[%emt 0:00:19]} Rb3 {[%emt 0:02:02]} 72. Rh8 {[%emt 0:01:10]} Kxf4 {[%emt 0:00:26]} 73. Rh4+ {[%emt 0:00:07]} Kg5 {[%emt 0:00:05]} 74. Ra4 {[%emt 0:00:03]} Kf6 {[%emt 0:01:19]} 75. Ra6+ {[%emt 0:00:31]} Ke5 {[%emt 0:00:28]} 76. Ra5+ {[%emt 0:00:20]} Kf4 {[%emt 0:00:13]} 77. Ra4+ {[%emt 0:00:04]} Kg5 {[%emt 0:00:05]} 78. Rc4 {[%emt 0:00:11]} Ra3 {[%emt 0:00:29]} 79. Rb4 {[%emt 0:00:09]} Ra2+ {[%emt 0:00:38]} 80. Kf3 {[%emt 0:00:20]} Rc2 {[%emt 0:00:54]} 81. Ra4 {[%emt 0:00:21]} Rb2 {[%emt 0:00:26]} 82. Rc4 {[%emt 0:00:07]} Rb3+ {[%emt 0:00:04]} 83. Kf2 {[%emt 0:00:04]} Rb6 {[%emt 0:00:29]} 84. Kf3 {[%emt 0:00:33]} Rb5 {[%emt 0:00:09]} 85. Ra4 {[%emt 0:00:41]} f4 {[%emt 0:00:27]} 86. Ra8 {[%emt 0:00:15]} Rb3+ {[%emt 0:00:23]} 87. Kf2 {[%emt 0:00:03]} Rb6 {[%emt 0:00:18]} 88. Rg8+ {[%emt 0:00:11]} Kf5 {[%emt 0:00:06]} 89. Rf8+ {[%emt 0:00:03]} Ke5 {[%emt 0:00:14]} 90. Re8+ {[%emt 0:00:04]} Re6 {[%emt 0:00:07]} 91. Rxe6+ {[%emt 0:00:04]} Kxe6 {[%emt 0:00:04]} 92. Kf3 {[%emt 0:00:08]} Kf5 {[%emt 0:00:05]} 93. Kf2 {[%emt 0:00:03]} Ke4 {[%emt 0:00:10]} 94. Ke2 {[%emt 0:00:03]} f3+ {[%emt 0:00:04]} 95. Kf2 {[%emt 0:00:01]} Kf4 {[%emt 0:00:07]} 96. Kf1 {[%emt 0:00:05]} Kg3 {[%emt 0:00:06]} 97. Kg1 {[%emt 0:00:03]} Kg4 {[%emt 0:00:07]} 98. Kf2 {[%emt 0:00:06]} Kf4 {[%emt 0:00:05]} 99. Kf1 {[%emt 0:00:03]} Ke3 {[%emt 0:00:04]} 100. Ke1 {[%emt 0:00:03]} f2+ {[%emt 0:00:08]} 101. Kf1 {[%emt 0:00:03]} Kf3 {[%emt 0:00:06]} 1/2-1/2